[Event "CAMPEONATO NACIONAL ABSOLUTO DE CHILE 2019"]
[Site "Torre ENTEL, Chile"]
[Date "2019.02.26"]
[Round "9.3"]
[White "Aguirre Contreras, Cristian"]
[Black "Vergara Jofre, Felipe"]
[Result "1/2-1/2"]
[TimeControl "90 minutos mas 30 segundos incremento por movida"]
[WhiteTitle "FM"]
[BlackTitle "FM"]
[WhiteFideId "3412776"]
[BlackFideId "3416291"]
[WhiteElo "2252"]
[BlackElo "2265"]

1. Nf3 {[%clk 01:30:52]} {[%emt 00:00:08]} d5 {[%clk 01:30:56]} {[%emt
00:00:04]} 2. g3 {[%clk 01:31:13]} {[%emt 00:00:09]} Bg4 {[%clk 01:31:21]}
{[%emt 00:00:05]} 3. Bg2 {[%clk 01:31:37]} {[%emt 00:00:06]} Nd7 {[%clk
01:31:39]} {[%emt 00:00:13]} 4. d4 {[%clk 01:31:53]} {[%emt 00:00:14]} Ngf6
{[%clk 01:29:52]} {[%emt 00:02:17]} 5. O-O {[%clk 01:32:09]} {[%emt 00:00:14]}
e6 {[%clk 01:30:12]} {[%emt 00:00:10]} 6. c4 {[%clk 01:32:13]} {[%emt
00:00:26]} c6 {[%clk 01:27:07]} {[%emt 00:03:35]} 7. Nc3 {[%clk 01:27:11]}
{[%emt 00:05:31]} dxc4 {[%clk 01:12:32]} {[%emt 00:15:05]} 8. Qc2 {[%clk
01:20:38]} {[%emt 00:07:03]} Be7 {[%clk 01:01:27]} {[%emt 00:11:35]} 9. Rd1
{[%clk 01:18:56]} {[%emt 00:02:12]} O-O {[%clk 00:56:33]} {[%emt 00:05:24]} 10.
Ne5 {[%clk 01:17:03]} {[%emt 00:02:22]} Nxe5 {[%clk 00:55:59]} {[%emt
00:01:05]} 11. dxe5 {[%clk 01:17:31]} {[%emt 00:00:02]} Nd5 {[%clk 00:56:28]}
{[%emt 00:00:01]} 12. Rd4 {[%clk 01:09:52]} {[%emt 00:08:09]} Bh5 {[%clk
00:50:25]} {[%emt 00:06:33]} 13. Bf4 {[%clk 00:36:29]} {[%emt 00:33:53]} b5
{[%clk 00:47:15]} {[%emt 00:03:40]} 14. Qd2 {[%clk 00:28:22]} {[%emt 00:08:36]}
Qb6 {[%clk 00:26:50]} {[%emt 00:20:55]} 15. Ne4 {[%clk 00:21:32]} {[%emt
00:07:20]} c5 {[%clk 00:17:55]} {[%emt 00:09:25]} 16. Rxd5 {[%clk 00:21:46]}
{[%emt 00:00:16]} exd5 {[%clk 00:18:24]} {[%emt 00:00:01]} 17. Qxd5 {[%clk
00:22:15]} {[%emt 00:00:02]} Rad8 {[%clk 00:18:36]} {[%emt 00:00:17]} 18. Nd6
{[%clk 00:22:21]} {[%emt 00:00:24]} g5 {[%clk 00:17:09]} {[%emt 00:02:42]} 19.
Be3 {[%clk 00:22:34]} Bxd6 {[%clk 00:16:36]} {[%emt 00:00:36]} 20. exd6 {[%clk
00:22:50]} {[%emt 00:00:14]} Qxd6 {[%clk 00:16:17]} {[%emt 00:00:49]} 21. Qxg5+
{[%clk 00:23:13]} {[%emt 00:00:07]} Qg6 {[%clk 00:16:28]} {[%emt 00:00:19]} 22.
Qxc5 {[%clk 00:22:59]} {[%emt 00:00:44]} Bxe2 {[%clk 00:16:32]} {[%emt
00:00:27]} 23. Qxb5 {[%clk 00:23:16]} {[%emt 00:00:13]} a6 {[%clk 00:10:36]}
{[%emt 00:06:26]} 24. Qa4 {[%clk 00:21:13]} {[%emt 00:02:32]} Rfe8 {[%clk
00:10:17]} {[%emt 00:00:49]} 25. h4 {[%clk 00:21:32]} {[%emt 00:00:10]} Rxe3
{[%clk 00:10:07]} {[%emt 00:00:40]} 26. fxe3 {[%clk 00:21:58]} {[%emt
00:00:04]} Qxg3 {[%clk 00:10:33]} {[%emt 00:00:04]} 27. Qa5 {[%clk 00:21:44]}
{[%emt 00:00:44]} Qxe3+ {[%clk 00:10:26]} {[%emt 00:00:37]} 28. Kh1 {[%clk
00:22:13]} {[%emt 00:00:01]} Rd4 {[%clk 00:08:24]} {[%emt 00:02:32]} 29. Qg5+
{[%clk 00:16:10]} {[%emt 00:06:34]} Qxg5 {[%clk 00:08:53]} {[%emt 00:00:01]} 30.
hxg5 {[%clk 00:16:38]} Rd2 {[%clk 00:09:18]} {[%emt 00:00:05]} 31. Rc1 {[%clk
00:08:43]} {[%emt 00:08:26]} Rxb2 {[%clk 00:09:45]} {[%emt 00:00:03]} 32. Bd5
{[%clk 00:09:08]} {[%emt 00:00:05]} Rxa2 {[%clk 00:08:40]} {[%emt 00:01:36]} 33.
Bxc4 {[%clk 00:09:37]} {[%emt 00:00:01]} Bf3+ {[%clk 00:05:49]} {[%emt
00:03:21]} 34. Kg1 {[%clk 00:09:53]} {[%emt 00:00:13]} Rg2+ {[%clk 00:06:13]}
{[%emt 00:00:06]} 35. Kf1 {[%clk 00:10:15]} {[%emt 00:00:08]} Rxg5 {[%clk
00:05:46]} {[%emt 00:00:57]} 36. Bxa6 {[%emt 00:00:13]} h5 {[%clk 00:05:52]}
{[%emt 00:00:18]} 37. Rc4 {[%clk 00:10:40]} {[%emt 00:00:28]} Kg7 {[%clk
00:04:04]} {[%emt 00:02:18]} 38. Rf4 {[%clk 00:10:34]} {[%emt 00:00:36]} Bd5
{[%clk 00:04:09]} {[%emt 00:00:26]} 39. Bd3 {[%clk 00:10:51]} {[%emt 00:00:14]}
Be6 {[%clk 00:02:49]} {[%emt 00:01:49]} 40. Kf2 {[%clk 00:10:57]} {[%emt
00:00:23]} Rg4 {[%clk 00:03:02]} {[%emt 00:00:18]} 41. Rf3 {[%clk 00:10:43]}
{[%emt 00:00:44]} Rg5 {[%clk 00:01:11]} {[%emt 00:02:20]} 42. Rf4 {[%clk
00:11:03]} {[%emt 00:00:10]} f5 {[%clk 00:01:33]} {[%emt 00:00:09]} 43. Be2
{[%clk 00:11:03]} {[%emt 00:00:30]} Kf6 {[%clk 00:01:57]} {[%emt 00:00:06]} 44.
Ra4 {[%clk 00:11:27]} {[%emt 00:00:06]} Bd5 {[%clk 00:01:21]} {[%emt 00:01:06]}
45. Ra6+ {[%clk 00:10:59]} {[%emt 00:00:57]} Ke5 {[%clk 00:00:59]} {[%emt
00:00:53]} 46. Ra5 {[%clk 00:11:05]} {[%emt 00:00:24]} f4 {[%clk 00:00:37]}
{[%emt 00:00:52]} 47. Bf3 {[%clk 00:10:53]} {[%emt 00:00:41]} Kd6 {[%clk
00:00:41]} {[%emt 00:00:26]} 48. Ra6+ {[%clk 00:10:55]} {[%emt 00:00:28]} Ke5
{[%clk 00:01:06]} {[%emt 00:00:05]} 49. Bxd5 {[%clk 00:10:49]} {[%emt
00:00:36]} Kf5 {[%clk 00:00:33]} {[%emt 00:01:04]} 50. Bf3 {[%clk 00:10:09]}
{[%emt 00:01:10]} Ke5 {[%clk 00:00:36]} {[%emt 00:00:27]} 51. Rh6 {[%clk
00:10:30]} {[%emt 00:00:08]} Kf5 {[%clk 00:00:39]} {[%emt 00:00:28]} 52. Bxh5
{[%clk 00:10:48]} {[%emt 00:00:12]} Rg7 {[%clk 00:00:31]} {[%emt 00:00:38]} 53.
Bf3 {[%clk 00:11:09]} {[%emt 00:00:08]} Rc7 {[%clk 00:00:41]} {[%emt 00:00:20]}
54. Rh5+ {[%clk 00:11:30]} {[%emt 00:00:09]} Kg6 {[%clk 00:01:00]} {[%emt
00:00:11]} 55. Ra5 {[%clk 00:11:37]} {[%emt 00:00:23]} Rc2+ {[%clk 00:01:17]}
{[%emt 00:00:14]} 56. Be2 {[%clk 00:11:57]} {[%emt 00:00:09]} Rc3 {[%clk
00:01:31]} {[%emt 00:00:16]} 57. Rd5 {[%clk 00:12:25]} {[%emt 00:00:02]} Re3
{[%clk 00:00:49]} {[%emt 00:01:12]} 58. Bd3+ {[%clk 00:12:19]} {[%emt
00:00:36]} Kf6 {[%clk 00:01:13]} {[%emt 00:00:06]} 59. Rd8 {[%clk 00:12:35]}
{[%emt 00:00:13]} Ke5 {[%clk 00:01:10]} {[%emt 00:00:34]} 60. Be2 {[%clk
00:11:41]} {[%emt 00:01:23]} Ra3 {[%clk 00:01:03]} {[%emt 00:00:37]} 61. Bd3
{[%clk 00:11:51]} {[%emt 00:00:20]} Ra4 {[%clk 00:00:32]} {[%emt 00:01:01]} 62.
Kf3 {[%clk 00:12:09]} {[%emt 00:00:12]} Ra3 {[%clk 00:00:41]} {[%emt 00:00:21]}
63. Kg4 {[%clk 00:11:34]} {[%emt 00:01:03]} Rc3 {[%clk 00:00:33]} {[%emt
00:00:39]} 64. Re8+ {[%clk 00:11:19]} {[%emt 00:00:45]} Kd4 {[%clk 00:00:44]}
{[%emt 00:00:20]} 65. Be4 {[%clk 00:11:15]} {[%emt 00:00:35]} Ke3 {[%clk
00:00:38]} {[%emt 00:00:34]} 66. Ba8+ {[%clk 00:11:26]} {[%emt 00:00:19]} Kd4
{[%clk 00:00:44]} {[%emt 00:00:24]} 67. Kxf4 {[%clk 00:11:45]} {[%emt
00:00:11]} Rc7 {[%clk 00:01:02]} {[%emt 00:00:12]} 68. Rd8+ {[%clk 00:12:06]}
{[%emt 00:00:09]} Kc5 {[%clk 00:01:30]} {[%emt 00:00:02]} 69. Be4 {[%clk
00:12:10]} {[%emt 00:00:25]} Rf7+ {[%clk 00:01:48]} {[%emt 00:00:12]} 70. Bf5
{[%clk 00:12:32]} {[%emt 00:00:08]} Re7 {[%clk 00:02:13]} {[%emt 00:00:05]} 71.
Rd2 {[%clk 00:12:45]} {[%emt 00:00:16]} Kc4 {[%clk 00:01:50]} {[%emt 00:00:54]}
72. Be4 {[%clk 00:12:48]} {[%emt 00:00:27]} Kc3 {[%clk 00:02:15]} {[%emt
00:00:05]} 73. Rd3+ {[%clk 00:12:49]} {[%emt 00:00:29]} Kc4 {[%clk 00:02:40]}
{[%emt 00:00:05]} 74. Ke3 {[%clk 00:13:13]} {[%emt 00:00:05]} Rg7 {[%clk
00:02:45]} {[%emt 00:00:25]} 75. Rd4+ {[%clk 00:13:11]} {[%emt 00:00:32]} Kc5
{[%clk 00:02:39]} {[%emt 00:00:36]} 76. Rd5+ {[%clk 00:13:33]} {[%emt
00:00:08]} Kc4 {[%clk 00:02:59]} {[%emt 00:00:10]} 77. Rd6 {[%clk 00:13:45]}
{[%emt 00:00:18]} Rc7 {[%clk 00:01:58]} {[%emt 00:01:32]} 78. Rd1 {[%clk
00:14:07]} {[%emt 00:00:07]} Kc5 {[%clk 00:02:01]} {[%emt 00:00:27]} 79. Rh1
{[%clk 00:13:39]} {[%emt 00:00:57]} Rg7 {[%clk 00:01:13]} {[%emt 00:01:19]} 80.
Rc1+ {[%clk 00:13:30]} {[%emt 00:00:38]} Kd6 {[%clk 00:01:33]} {[%emt
00:00:11]} 81. Kd4 {[%clk 00:13:46]} {[%emt 00:00:14]} Ke7 {[%clk 00:00:32]}
{[%emt 00:01:31]} 82. Ke5 {[%clk 00:14:00]} {[%emt 00:00:16]} Kd8 {[%clk
00:00:44]} {[%emt 00:00:18]} 83. Bf5 {[%clk 00:14:07]} {[%emt 00:00:24]} Re7+
{[%clk 00:01:10]} {[%emt 00:00:03]} 84. Be6 {[%clk 00:14:31]} {[%emt 00:00:06]}
Ra7 {[%clk 00:00:32]} {[%emt 00:01:09]} 85. Rh1 {[%clk 00:13:39]} {[%emt
00:01:21]} Ra5+ {[%clk 00:00:41]} {[%emt 00:00:21]} 86. Bd5 {[%clk 00:14:07]}
{[%emt 00:00:02]} Ra7 {[%clk 00:00:53]} {[%emt 00:00:19]} 87. Rh6 {[%clk
00:12:59]} {[%emt 00:01:37]} Rg7 {[%clk 00:01:04]} {[%emt 00:00:19]} 88. Ra6
{[%clk 00:13:07]} {[%emt 00:00:22]} Ke7 {[%clk 00:00:42]} {[%emt 00:00:53]} 89.
Be4 {[%clk 00:12:58]} {[%emt 00:00:39]} Kd8 {[%clk 00:00:38]} {[%emt 00:00:34]}
90. Bf5 {[%clk 00:13:23]} {[%emt 00:00:05]} Re7+ {[%clk 00:00:33]} {[%emt
00:00:34]} 91. Be6 {[%clk 00:13:42]} {[%emt 00:00:11]} Rc7 {[%clk 00:00:35]}
{[%emt 00:00:29]} 92. Ra4 {[%clk 00:13:31]} {[%emt 00:00:41]} Ke7 {[%clk
00:00:40]} {[%emt 00:00:25]} 93. Rh4 {[%clk 00:13:54]} {[%emt 00:00:07]} Kd8
{[%clk 00:00:34]} {[%emt 00:00:37]} 94. Kf6 {[%clk 00:13:15]} {[%emt 00:01:08]}
Ra7 {[%clk 00:00:33]} {[%emt 00:00:31]} 95. Rc4 {[%clk 00:13:33]} {[%emt
00:00:12]} Ra8 {[%clk 00:00:35]} {[%emt 00:00:28]} 96. Rc6 {[%clk 00:13:40]}
{[%emt 00:00:23]} Rb8 {[%clk 00:00:42]} {[%emt 00:00:23]} 97. Ke5 {[%clk
00:13:53]} {[%emt 00:00:17]} Rb7 {[%clk 00:00:38]} {[%emt 00:00:34]} 98. Rc2
{[%clk 00:13:57]} {[%emt 00:00:26]} Rb5+ {[%clk 00:00:33]} {[%emt 00:00:36]} 99.
Bd5 {[%clk 00:14:16]} {[%emt 00:00:11]} Rb6 {[%clk 00:00:42]} {[%emt 00:00:21]}
100. Bc6 {[%clk 00:14:32]} {[%emt 00:00:13]} Ke7 {[%clk 00:00:42]} {[%emt
00:00:30]} 101. Bd5 {[%clk 00:14:47]} {[%emt 00:00:14]} Kd8 {[%clk 00:00:38]}
{[%emt 00:00:35]} 102. Be6 {[%clk 00:15:07]} {[%emt 00:00:10]} Rb8 {[%clk
00:00:36]} {[%emt 00:00:32]} 103. Rd2+ {[%clk 00:15:23]} {[%emt 00:00:14]} Kc7
{[%clk 00:00:55]} {[%emt 00:00:12]} 104. Rc2+ {[%clk 00:15:44]} {[%emt
00:00:08]} Kd8 {[%clk 00:01:10]} {[%emt 00:00:15]} 105. Rc6 {[%clk 00:16:05]}
{[%emt 00:00:09]} Ke7 {[%clk 00:00:32]} {[%emt 00:01:09]} 106. Rc7+ {[%clk
00:16:28]} {[%emt 00:00:07]} Kd8 {[%clk 00:00:35]} {[%emt 00:00:28]} 107. Rd7+
{[%clk 00:16:50]} {[%emt 00:00:08]} Kc8 {[%clk 00:00:49]} {[%emt 00:00:16]} 108.
Bf5 {[%clk 00:16:31]} {[%emt 00:00:49]} Rb7 {[%clk 00:00:32]} {[%emt 00:00:47]}
109. Rg7+ {[%clk 00:16:09]} {[%emt 00:00:51]} Kb8 {[%clk 00:00:53]} {[%emt
00:00:10]} 110. Rg8+ {[%clk 00:16:31]} {[%emt 00:00:08]} Kc7 {[%clk 00:01:01]}
{[%emt 00:00:23]} 111. Be4 {[%clk 00:16:37]} {[%emt 00:00:24]} Rb8 {[%clk
00:00:34]} {[%emt 00:00:57]} 112. Rg7+ {[%clk 00:16:59]} {[%emt 00:00:10]} Kb6
{[%clk 00:00:59]} {[%emt 00:00:03]} 113. Kd4 {[%clk 00:17:18]} {[%emt
00:00:10]} Rd8+ {[%clk 00:01:03]} {[%emt 00:00:26]} 114. Bd5 {[%clk 00:17:46]}
{[%emt 00:00:02]} Rb8 {[%clk 00:01:19]} {[%emt 00:00:14]} 115. Rg1 {[%clk
00:18:12]} {[%emt 00:00:04]} Rd8 {[%clk 00:01:19]} {[%emt 00:00:30]} 116. Rb1+
{[%clk 00:18:38]} {[%emt 00:00:05]} Kc7 {[%clk 00:01:01]} {[%emt 00:00:48]} 117.
Kc5 {[%clk 00:18:57]} {[%emt 00:00:10]} Rd7 {[%clk 00:00:54]} {[%emt 00:00:37]}
118. Rb7+ {[%clk 00:18:22]} {[%emt 00:01:05]} 1/2-1/2

[Event "CAMPEONATO NACIONAL ABSOLUTO DE CHILE 2019"]
[Site "Torre ENTEL, Chile"]
[Date "2019.02.26"]
[Round "9.4"]
[White "Cuevas Araya, Walter"]
[Black "Torres Bravo, Cristobal"]
[Result "1-0"]
[TimeControl "90 minutos mas 30 segundos incremento por movida"]
[WhiteTitle "FM"]
[BlackTitle "FM"]
[WhiteFideId "3405028"]
[BlackFideId "3405940"]
[WhiteElo "2187"]
[BlackElo "2347"]

1. e4 {[%clk 01:26:54]} {[%emt 00:04:05]} c5 {[%clk 01:30:33]} {[%emt
00:00:27]} 2. Nf3 {[%clk 01:26:17]} {[%emt 00:01:07]} Nc6 {[%clk 01:30:51]}
{[%emt 00:00:13]} 3. d4 {[%clk 01:26:40]} {[%emt 00:00:06]} cxd4 {[%clk
01:31:16]} {[%emt 00:00:05]} 4. Nxd4 {[%clk 01:27:09]} {[%emt 00:00:02]} e6
{[%clk 01:31:34]} {[%emt 00:00:12]} 5. Nc3 {[%clk 01:27:11]} {[%emt 00:00:27]}
Qc7 {[%clk 01:31:59]} {[%emt 00:00:06]} 6. Qd3 {[%clk 01:21:35]} {[%emt
00:06:06]} Nf6 {[%clk 01:32:22]} {[%emt 00:00:07]} 7. Nxc6 {[%clk 01:17:09]}
{[%emt 00:04:56]} bxc6 {[%clk 01:32:47]} {[%emt 00:00:05]} 8. Qg3 {[%clk
01:17:07]} {[%emt 00:00:32]} Qxg3 {[%clk 01:32:39]} {[%emt 00:00:38]} 9. hxg3
{[%clk 01:17:29]} {[%emt 00:00:08]} d5 {[%clk 01:33:03]} {[%emt 00:00:07]} 10.
Bd3 {[%clk 01:14:11]} {[%emt 00:03:47]} Rb8 {[%clk 01:31:48]} {[%emt 00:01:45]}
11. exd5 {[%clk 01:11:25]} {[%emt 00:03:16]} cxd5 {[%clk 01:30:27]} {[%emt
00:01:51]} 12. Nb5 {[%clk 01:08:21]} {[%emt 00:03:34]} Bc5 {[%clk 01:25:54]}
{[%emt 00:05:04]} 13. Bf4 {[%clk 01:08:22]} {[%emt 00:00:28]} Rb6 {[%clk
01:23:09]} {[%emt 00:03:15]} 14. Nxa7 {[%clk 00:57:06]} {[%emt 00:11:47]} Bd7
{[%clk 01:20:47]} {[%emt 00:02:52]} 15. a4 {[%clk 00:57:35]} {[%emt 00:00:01]}
e5 {[%clk 01:13:54]} {[%emt 00:07:23]} 16. Bc1 {[%clk 00:56:03]} {[%emt
00:02:02]} Ke7 {[%clk 01:09:22]} {[%emt 00:05:02]} 17. Nb5 {[%clk 00:55:59]}
{[%emt 00:00:34]} Ra8 {[%clk 01:09:35]} {[%emt 00:00:17]} 18. Nc3 {[%clk
00:55:52]} {[%emt 00:00:36]} e4 {[%clk 01:09:07]} {[%emt 00:00:58]} 19. Be2
{[%clk 00:54:34]} {[%emt 00:01:48]} d4 {[%clk 01:09:19]} {[%emt 00:00:18]} 20.
Nd1 {[%clk 00:54:28]} {[%emt 00:00:36]} Rxa4 {[%clk 01:09:18]} {[%emt
00:00:31]} 21. Rxa4 {[%clk 00:54:33]} {[%emt 00:00:25]} Bxa4 {[%clk 01:09:44]}
{[%emt 00:00:04]} 22. b3 {[%clk 00:54:48]} {[%emt 00:00:15]} Bd7 {[%clk
01:06:51]} {[%emt 00:03:23]} 23. Bg5 {[%clk 00:54:13]} {[%emt 00:01:06]} h6
{[%clk 01:07:03]} {[%emt 00:00:18]} 24. Bxf6+ {[%clk 00:53:38]} {[%emt
00:01:04]} Rxf6 {[%clk 01:06:48]} {[%emt 00:00:45]} 25. Rh5 {[%clk 00:42:25]}
{[%emt 00:11:42]} g5 {[%clk 01:05:01]} {[%emt 00:02:19]} 26. g4 {[%clk
00:37:27]} {[%emt 00:05:27]} e3 {[%clk 01:00:19]} {[%emt 00:05:13]} 27. Rh3
{[%clk 00:34:22]} {[%emt 00:03:35]} Rxf2 {[%clk 00:59:43]} {[%emt 00:01:06]} 28.
Nxf2 {[%clk 00:34:26]} {[%emt 00:00:25]} exf2+ {[%clk 00:59:52]} {[%emt
00:00:22]} 29. Kf1 {[%clk 00:34:44]} {[%emt 00:00:11]} f5 {[%clk 00:58:33]}
{[%emt 00:01:50]} 30. Rxh6 {[%clk 00:33:39]} {[%emt 00:01:35]} fxg4 {[%clk
00:58:51]} {[%emt 00:00:12]} 31. Bd3 {[%clk 00:25:37]} {[%emt 00:08:32]} g3
{[%clk 00:59:16]} {[%emt 00:00:06]} 32. Rg6 {[%clk 00:25:51]} {[%emt 00:00:16]}
g4 {[%clk 00:59:25]} {[%emt 00:00:21]} 33. Rg7+ {[%clk 00:25:34]} {[%emt
00:00:46]} Kd6 {[%clk 00:59:21]} {[%emt 00:00:34]} 34. Rg6+ {[%clk 00:25:28]}
{[%emt 00:00:36]} Ke7 {[%clk 00:59:11]} {[%emt 00:00:40]} 35. Rg5 {[%clk
00:25:08]} {[%emt 00:00:50]} Bb6 {[%clk 00:58:39]} {[%emt 00:01:03]} 36. b4
{[%clk 00:24:01]} {[%emt 00:01:38]} Kd6 {[%clk 00:57:09]} {[%emt 00:01:59]} 37.
Be2 {[%clk 00:22:56]} {[%emt 00:01:35]} Ba4 {[%clk 00:53:03]} {[%emt 00:04:36]}
38. Rg6+ {[%clk 00:22:53]} {[%emt 00:00:33]} Kc7 {[%clk 00:53:15]} {[%emt
00:00:18]} 39. b5 {[%clk 00:20:10]} {[%emt 00:03:13]} Kb7 {[%clk 00:51:24]}
{[%emt 00:02:31]} 40. Bd3 {[%clk 00:20:29]} Ka7 {[%clk 00:51:19]} {[%emt
00:00:35]} 41. Rg7+ {[%clk 00:20:21]} {[%emt 00:00:37]} Kb8 {[%clk 00:51:44]}
{[%emt 00:00:06]} 42. Rxg4 {[%clk 00:20:39]} {[%emt 00:00:12]} 1-0